bitfinex/quotes_BTCUSD_20251113
["timestamp","ask_amount","ask_price","bid_price","bid_amount"]
[1763042091464,0.09939033,102560.0,102550.0,0.75355383]
[1763042091891,0.29439813,102560.0,102550.0,0.73355383]
[1763042092275,0.09939033,102560.0,102550.0,0.73355383]
[1763042092896,0.09939033,102560.0,102550.0,0.75355383]
[1763042093069,0.09939033,102560.0,102550.0,0.73355383]
[1763042093277,0.09939033,102560.0,102550.0,0.75355383]
[1763042093436,0.09939033,102560.0,102550.0,0.73355383]
[1763042094163,0.09939033,102560.0,102550.0,0.75355383]
[1763042095932,0.29439813,102560.0,102550.0,0.73355383]
[1763042098017,0.29439813,102560.0,102550.0,0.04683]
[1763042098383,0.54489164,102560.0,102550.0,0.002]
[1763042098579,0.31869813,102560.0,102550.0,0.002]
[1763042098757,0.12866517,102560.0,102550.0,0.48805032]
[1763042098934,0.12866517,102560.0,102550.0,0.60255978]
[1763042099137,0.12866517,102560.0,102550.0,0.58255978]
[1763042099325,0.29439813,102560.0,102550.0,0.58255978]
[1763042099742,0.14167033,102560.0,102550.0,0.58255978]
[1763042099945,0.14167033,102560.0,102550.0,0.56324978]
[1763042100194,0.34882813,102560.0,102550.0,0.54324978]
[1763042100419,0.34882813,102560.0,102550.0,0.002]
[1763042100609,0.39025297,102560.0,102550.0,0.002]
[1763042100811,0.69164594,102560.0,102550.0,0.002]
[1763042101028,0.39025297,102560.0,102550.0,0.19702681]
[1763042101180,0.37810297,102560.0,102550.0,0.19702681]
[1763042101392,0.17094517,102560.0,102550.0,0.54026978]
[1763042101605,0.17094517,102560.0,102550.0,0.59634978]
[1763042101795,0.17094517,102560.0,102550.0,0.57634978]
[1763042101994,1.40424576,102560.0,102550.0,0.002]
[1763042102199,1.10285279,102560.0,102550.0,0.002]
[1763042102394,1.03273971,102560.0,102550.0,0.002]
[1763042103289,1.03273971,102560.0,102550.0,0.001]
[1763042103548,0.19502681,102550.0,102540.0,0.19504583]
[1763042103753,0.21312058,102550.0,102540.0,0.19504583]
[1763042103964,0.20717681,102550.0,102540.0,0.19504583]
[1763042104327,0.23645528,102550.0,102540.0,0.19504583]
[1763042104930,0.23645528,102550.0,102540.0,0.19604583]
[1763042105173,0.23645528,102550.0,102540.0,0.001]
[1763042105326,0.23645528,102550.0,102540.0,0.002]
[1763042106409,0.23645528,102550.0,102540.0,0.19704583]
[1763042107058,0.23645528,102550.0,102540.0,0.002]
[1763042108625,0.23645528,102550.0,102540.0,0.19704583]
[1763042110045,0.23645528,102550.0,102540.0,0.002]
[1763042110245,0.24761528,102550.0,102540.0,0.002]
[1763042111094,0.54900825,102550.0,102540.0,0.002]
[1763042111305,0.93350586,102550.0,102540.0,0.002]
[1763042112139,1.23489883,102550.0,102540.0,0.002]
[1763042112384,1.26474593,102550.0,102540.0,0.002]
[1763042112785,1.26474593,102550.0,102540.0,0.001]
[1763042113151,1.26474593,102550.0,102530.0,5.0]
[1763042113152,0.51804583,102540.0,102530.0,5.0]
[1763042113371,1.30059097,102540.0,102530.0,5.0]
[1763042113779,1.32987596,102540.0,102530.0,5.0]
[1763042114264,1.33287596,102540.0,102530.0,5.0]
[1763042115006,1.44729206,102540.0,102530.0,5.0]
[1763042115184,1.37827356,102540.0,102530.0,5.0]
[1763042118069,1.38807741,102540.0,102530.0,5.0]
[1763042118891,1.46254469,102540.0,102530.0,5.0]
[1763042119102,1.46254469,102540.0,102530.0,4.55202]
[1763042119302,1.46254469,102540.0,102530.0,4.07889958]
[1763042119303,1.8693502,102540.0,102530.0,4.07889958]
[1763042119511,1.8693502,102540.0,102530.0,3.78875646]
[1763042119761,1.8693502,102540.0,102530.0,3.77763772]
[1763042120193,1.8663502,102540.0,102530.0,3.64165125]
[1763042120336,0.86577181,102540.0,102530.0,3.64165125]
[1763042120540,1.42627775,102540.0,102530.0,3.64165125]
[1763042120792,1.47255775,102540.0,102530.0,3.64165125]
[1763042121098,1.43824374,102540.0,102530.0,3.64165125]
[1763042121257,1.39396374,102540.0,102530.0,3.64165125]
[1763042121460,1.43624374,102540.0,102530.0,3.64165125]
[1763042122163,1.43924374,102540.0,102530.0,3.64114131]
[1763042123735,0.92918923,102540.0,102530.0,3.64114131]
[1763042123895,1.53197517,102540.0,102530.0,3.64114131]
[1763042124265,1.24328918,102540.0,102530.0,3.64114131]
[1763042126099,1.15055775,102540.0,102530.0,3.64114131]
[1763042126345,1.47355775,102540.0,102530.0,3.64114131]
[1763042126719,0.82849181,102540.0,102530.0,3.64114131]
[1763042126961,0.36878888,102540.0,102530.0,3.64114131]
[1763042127165,0.41106888,102540.0,102530.0,3.64114131]
[1763042127403,1.03546185,102540.0,102530.0,3.64114131]
[1763042127606,1.07888059,102540.0,102530.0,3.64114131]
[1763042128016,0.68878888,102540.0,102530.0,3.64114131]
[1763042128226,0.73106888,102540.0,102530.0,3.64114131]
[1763042128426,0.69078888,102540.0,102530.0,3.83620616]
[1763042128631,0.72906888,102540.0,102530.0,3.83620616]
[1763042128837,0.71790888,102540.0,102530.0,3.83620616]
[1763042129035,0.71990888,102540.0,102530.0,3.83620616]
[1763042129619,0.75564888,102540.0,102530.0,3.83620616]
[1763042129847,0.75564888,102540.0,102530.0,3.64114131]
[1763042129848,1.05704185,102540.0,102530.0,3.64114131]
[1763042130031,0.75564888,102540.0,102530.0,3.64114131]
[1763042130645,1.4548343,102540.0,102530.0,3.64114131]
[1763042130843,0.85204836,102540.0,102530.0,3.64114131]
[1763042131048,1.4548343,102540.0,102530.0,3.64114131]
[1763042131388,1.05704185,102540.0,102530.0,3.64114131]
[1763042131588,0.8487117,102540.0,102530.0,3.64114131]
[1763042131797,0.62790384,102540.0,102530.0,3.64114131]
[1763042131997,0.3768912,102540.0,102530.0,3.64114131]
[1763042132448,0.4191712,102540.0,102530.0,3.64114131]
[1763042133047,0.72056417,102540.0,102530.0,3.64114131]
[1763042133254,0.4191712,102540.0,102530.0,3.64114131]
[1763042133452,0.72056417,102540.0,102530.0,3.64114131]
[1763042133863,0.4191712,102540.0,102530.0,3.64114131]
[1763042134492,1.02195714,102540.0,102530.0,3.64114131]
[1763042134701,1.45591397,102540.0,102530.0,3.64114131]
[1763042134852,1.48573305,102540.0,102530.0,3.64114131]
[1763042137479,1.55716547,102540.0,102530.0,3.64114131]
[1763042137840,1.53637151,102540.0,102530.0,3.64114131]
[1763042138191,1.55717766,102540.0,102530.0,3.64114131]
[1763042138409,1.48963957,102540.0,102530.0,3.64114131]
[1763042139821,1.48803294,102540.0,102530.0,3.64114131]
[1763042141758,1.0555165,102540.0,102530.0,3.64114131]
[1763042141961,1.41660052,102540.0,102530.0,3.64114131]
[1763042142186,1.37318178,102540.0,102530.0,3.64114131]
[1763042142388,1.41660052,102540.0,102530.0,3.64114131]
[1763042143019,1.513,102540.0,102530.0,3.64114131]
[1763042143920,1.41660052,102540.0,102530.0,3.64114131]
[1763042146437,1.11520755,102540.0,102530.0,3.64114131]
[1763042147631,0.81381458,102540.0,102530.0,3.64114131]
[1763042147861,1.0944014,102540.0,102530.0,3.64114131]
[1763042149052,1.41664093,102540.0,102530.0,3.64114131]
[1763042149937,1.43900812,102540.0,102530.0,3.64114131]
[1763042150127,1.41664093,102540.0,102530.0,3.64114131]
[1763042152029,1.74404159,102540.0,102530.0,3.64114131]
[1763042152235,1.44264862,102540.0,102530.0,3.64114131]
[1763042154334,1.74404159,102540.0,102530.0,3.56922649]
[1763042154565,1.78220465,102540.0,102530.0,3.56922649]
[1763042154979,1.77619694,102540.0,102530.0,2.69289152]
[1763042155207,1.80220463,102540.0,102530.0,2.31663839]
[1763042155796,1.80181126,102540.0,102530.0,2.30559332]
[1763042156002,1.91893126,102540.0,102530.0,2.28064682]
[1763042156206,1.91893126,102540.0,102530.0,2.27447594]
[1763042156436,1.99079888,102540.0,102530.0,1.77452458]
[1763042156632,1.99279888,102540.0,102530.0,1.5836704]
[1763042156909,1.96979119,102540.0,102530.0,1.50880765]
[1763042157135,1.49674159,102540.0,102530.0,1.50880765]
[1763042157845,1.50425159,102540.0,102530.0,1.50880765]
[1763042158463,1.50425159,102540.0,102530.0,1.47502742]
[1763042159095,1.5875394,102540.0,102530.0,1.47502742]
[1763042161156,1.5875394,102540.0,102530.0,1.46926559]
[1763042161741,1.5875394,102540.0,102530.0,1.45348246]
[1763042162144,3.5875394,102540.0,102530.0,0.578645]
[1763042162346,0.19512195,102500.0,102490.0,0.00024625]
[1763042162553,1.28616527,102500.0,102490.0,0.00024625]
[1763042162990,1.36333471,102500.0,102490.0,0.00024625]
[1763042163419,0.84891759,102500.0,102490.0,0.00038618]
[1763042163644,1.36333471,102500.0,102490.0,0.00038618]
[1763042164221,0.05718,102470.0,102460.0,0.19519812]
[1763042164442,0.09946,102470.0,102460.0,0.19566476]
[1763042164649,0.01941,102470.0,102460.0,0.26018476]
[1763042164800,0.0487106,102480.0,102470.0,0.19516818]
[1763042165005,0.0864806,102480.0,102470.0,0.19516818]
[1763042165206,0.323,102490.0,102480.0,0.19516003]
[1763042165426,0.12273151,102490.0,102480.0,0.19516003]
[1763042165626,0.34902944,102490.0,102470.0,0.54554569]
[1763042165826,0.2022178,102490.0,102480.0,0.19516003]
[1763042166993,0.48148661,102510.0,102490.0,0.19514098]
[1763042167290,0.02929531,102500.0,102490.0,0.24247098]
[1763042167699,0.07157531,102500.0,102490.0,0.24247098]
[1763042167914,0.09099531,102500.0,102490.0,0.19514098]
[1763042168287,0.19514098,102490.0,102460.0,0.03733654]
[1763042168468,0.23744003,102480.0,102460.0,0.02757664]
[1763042168835,0.04228,102480.0,102470.0,0.19517907]
[1763042169242,0.0617,102480.0,102470.0,0.19517907]
[1763042169733,0.25686003,102480.0,102460.0,0.55323182]
[1763042169941,0.0617,102480.0,102470.0,0.19517907]
[1763042171064,0.0617,102480.0,102470.0,0.04933]
[1763042171065,0.25686003,102480.0,102470.0,0.04933]
[1763042171285,0.25686003,102480.0,102470.0,0.002]
[1763042171737,0.25686003,102480.0,102470.0,0.0024926]
[1763042172234,0.20495802,102460.0,102430.0,0.0004]
[1763042172442,0.20495802,102460.0,102420.0,0.0004]
[1763042172443,0.56167403,102430.0,102420.0,0.0004]
[1763042172670,0.89630977,102430.0,102420.0,0.00053655]
[1763042172893,0.65602121,102430.0,102420.0,0.00053655]
[1763042173116,0.87465886,102430.0,102420.0,0.00053655]
[1763042173336,0.91713886,102430.0,102420.0,0.00053655]
[1763042173642,1.01353834,102430.0,102420.0,0.00053655]
[1763042173841,0.75632978,102430.0,102420.0,0.00053655]
[1763042174063,1.01353834,102430.0,102420.0,0.00053655]
[1763042174278,0.75632978,102430.0,102420.0,0.00053655]
[1763042174492,1.01353834,102430.0,102420.0,0.00253655]
[1763042174708,1.08558921,102430.0,102420.0,0.00253655]
[1763042175353,1.34279777,102430.0,102420.0,0.00353655]
[1763042175569,1.08558921,102430.0,102420.0,0.00353655]
[1763042175997,1.08558921,102430.0,102420.0,0.00153655]
[1763042176311,1.4403635,102430.0,102420.0,0.00153655]
[1763042176540,0.70969148,102420.0,102410.0,0.0004]
[1763042176764,0.85795814,102420.0,102410.0,0.00054002]
[1763042177211,1.18095814,102420.0,102410.0,0.00054002]
[1763042177668,0.45250198,102410.0,102400.0,0.0004]
[1763042177942,0.54684916,102410.0,102400.0,0.00054005]
[1763042178671,1.22462345,102410.0,102400.0,0.00054005]
[1763042178881,1.32493296,102410.0,102400.0,0.00054005]
[1763042179361,1.32493296,102410.0,102390.0,0.0004]
[1763042179362,0.5183125,102400.0,102390.0,0.0004]
[1763042179578,1.0845968,102400.0,102390.0,0.00044656]
[1763042179793,0.23875031,102390.0,102380.0,0.0004]
[1763042180025,0.33313749,102390.0,102380.0,0.0004]
[1763042180241,0.42953697,102390.0,102380.0,0.0004]
[1763042180521,0.68674553,102390.0,102380.0,0.0004]
[1763042180922,1.03276777,102380.0,102370.0,0.0004]
[1763042181125,0.53002639,102380.0,102370.0,0.0004]
[1763042181328,0.53002639,102380.0,102370.0,0.03661]
[1763042181536,0.1710915,102380.0,102370.0,0.03661]
[1763042181742,0.62365071,102380.0,102370.0,0.03661]
[1763042181946,0.03494718,102380.0,102370.0,0.23197973]
[1763042182151,0.25589783,102380.0,102370.0,0.15719]
[1763042182357,0.25589783,102380.0,102370.0,0.35255973]
[1763042182358,0.06054718,102380.0,102370.0,0.35255973]
[1763042182561,0.25589783,102380.0,102370.0,0.08494]
[1763042182688,0.30473327,102380.0,102370.0,0.08494]
[1763042182891,0.01802718,102380.0,102370.0,0.28030973]
[1763042183122,0.01802718,102380.0,102370.0,0.61076829]
[1763042183337,0.01802718,102380.0,102370.0,0.61323398]
[1763042183786,0.01802718,102380.0,102370.0,0.61423398]
[1763042184028,0.38925927,102410.0,102390.0,0.19533072]
[1763042184321,0.2378325,102400.0,102380.0,0.31591505]
[1763042184532,0.19533157,102390.0,102380.0,0.12058]
[1763042184740,0.01786388,102390.0,102380.0,0.31593065]
[1763042185361,0.34858317,102400.0,102380.0,0.31593065]
[1763042185568,0.19533157,102390.0,102380.0,0.31593065]
[1763042185782,0.21319568,102390.0,102380.0,0.31593065]
[1763042185949,0.09797644,102390.0,102380.0,0.24268065]
[1763042186162,0.01886411,102390.0,102380.0,0.24268065]
[1763042186336,0.01886411,102390.0,102380.0,0.31593065]
[1763042187075,0.01886411,102390.0,102380.0,0.12058]
[1763042187289,0.21519568,102390.0,102380.0,0.12058]
[1763042187654,0.21519568,102390.0,102370.0,0.24174821]
[1763042187655,0.23605568,102390.0,102370.0,0.24174821]
[1763042188007,0.57774899,102390.0,102370.0,0.62822664]
[1763042188425,0.57674899,102390.0,102370.0,0.62822664]
[1763042188622,0.23787065,102380.0,102370.0,0.62822664]
[1763042188824,0.06038411,102380.0,102370.0,0.67555973]
[1763042189241,0.25573476,102380.0,102370.0,0.67555973]
[1763042189482,0.39200778,102380.0,102370.0,0.0004]
[1763042189686,0.60821843,102380.0,102370.0,0.0004]
[1763042189892,0.58735843,102380.0,102370.0,0.0004]
[1763042190094,0.58735843,102380.0,102370.0,0.0014]
[1763042190917,0.60821843,102380.0,102370.0,0.0014]
[1763042191318,0.60821843,102380.0,102370.0,0.0024]
[1763042191540,0.59035432,102380.0,102370.0,0.0024]
[1763042191847,0.25578588,102380.0,102370.0,0.05393]
[1763042192054,0.53385444,102380.0,102370.0,0.0024]
[1763042192678,0.27664588,102380.0,102370.0,0.0024]
[1763042192872,0.53385444,102380.0,102370.0,0.0024]
[1763042193881,0.33850379,102380.0,102370.0,0.19776973]
[1763042194106,0.41217841,102380.0,102370.0,0.0024]
[1763042194316,0.60752906,102380.0,102370.0,0.19776973]
[1763042194557,0.60752906,102380.0,102370.0,0.0024]
[1763042194973,0.06043523,102380.0,102370.0,0.24929973]
[1763042195205,0.06043523,102380.0,102370.0,0.58616398]
[1763042195414,0.25578588,102380.0,102370.0,0.58616398]
[1763042195622,0.27664588,102380.0,102370.0,0.00486569]
[1763042196077,0.29750588,102380.0,102370.0,0.00486569]
[1763042196281,0.38095905,102380.0,102370.0,0.00486569]
[1763042197256,0.63816761,102380.0,102370.0,0.00486569]
[1763042197679,0.93879491,102380.0,102370.0,0.00486569]
[1763042198097,0.94775367,102380.0,102370.0,0.00486569]
[1763042198518,1.02104091,102380.0,102370.0,0.00486569]
[1763042198731,0.94775367,102380.0,102370.0,0.00386569]
[1763042198935,0.94775367,102380.0,102370.0,0.00286569]
[1763042199112,0.94975367,102380.0,102370.0,0.00286569]
[1763042199365,0.67065128,102380.0,102370.0,0.00286569]
[1763042199577,0.69254511,102380.0,102370.0,0.00286569]
[1763042200445,0.7132329,102380.0,102370.0,0.00286569]
[1763042200667,0.97044146,102380.0,102370.0,0.00286569]
[1763042200921,1.36580584,102380.0,102370.0,0.00286569]
[1763042201141,0.19541929,102350.0,102330.0,0.19544596]
[1763042201358,0.06342,102340.0,102330.0,0.1959132]
[1763042201574,0.08129523,102340.0,102330.0,0.2337632]
[1763042201785,0.27672223,102340.0,102330.0,0.0383171]
[1763042202003,0.08129523,102340.0,102330.0,0.2337632]
[1763042202266,0.31844223,102340.0,102330.0,0.0004671]
[1763042202480,0.40855781,102340.0,102330.0,0.0004671]
[1763042202690,0.38769781,102340.0,102330.0,0.0004671]
[1763042203115,0.38769781,102340.0,102330.0,0.0034671]
[1763042203533,0.40855781,102340.0,102330.0,0.0034671]
[1763042203739,0.40843441,102340.0,102330.0,0.0034671]
[1763042203951,0.40843441,102340.0,102330.0,0.0064671]
[1763042204166,0.66564297,102340.0,102330.0,0.0064671]
[1763042204377,0.98712542,102340.0,102330.0,0.0064671]
[1763042205018,0.98712542,102340.0,102330.0,0.0034671]
[1763042205227,1.33601058,102340.0,102330.0,0.0004671]
[1763042205471,1.44701058,102340.0,102330.0,0.0004671]
[1763042205711,1.48252413,102340.0,102330.0,0.0004671]
[1763042205916,1.48152413,102340.0,102330.0,0.0004671]
[1763042206362,1.44096413,102340.0,102330.0,0.0004671]
[1763042206597,1.34359557,102340.0,102330.0,0.0004671]
[1763042206807,1.30908202,102340.0,102330.0,0.0004671]
[1763042207022,1.30908202,102340.0,102330.0,0.00145425]
[1763042207243,1.56629058,102340.0,102330.0,0.00145425]
[1763042207460,1.40645058,102340.0,102330.0,0.00145425]
[1763042207680,1.44901058,102340.0,102330.0,0.00145425]
[1763042207885,1.48352413,102340.0,102330.0,0.00145425]
[1763042208326,1.44901058,102340.0,102330.0,0.00145425]
[1763042208546,1.41645057,102340.0,102330.0,0.00145425]
[1763042208822,1.63691886,102340.0,102330.0,0.00145425]
[1763042209258,0.5184652,102320.0,102310.0,0.0004]
[1763042209468,1.28891076,102320.0,102310.0,0.00044673]
[1763042209677,1.30977076,102320.0,102310.0,0.00044673]
[1763042209902,0.77449364,102320.0,102310.0,0.00044673]
[1763042210113,0.79535364,102320.0,102310.0,0.00044673]
[1763042210320,1.08846004,102320.0,102310.0,0.00044673]
[1763042210543,1.28392524,102320.0,102310.0,0.00044673]
[1763042210760,0.72694812,102320.0,102310.0,0.00044673]
[1763042210987,0.38308812,102320.0,102310.0,0.00044673]
[1763042211196,0.66212493,102320.0,102310.0,0.00044673]
[1763042211642,0.35335389,102320.0,102310.0,0.08982673]
[1763042211874,0.35335389,102320.0,102310.0,0.6197096]
[1763042211875,0.01887523,102320.0,102310.0,0.6197096]
[1763042212096,0.01887523,102320.0,102310.0,0.49001673]
[1763042212321,0.01887523,102320.0,102310.0,0.9427096]
[1763042212756,0.01887523,102320.0,102310.0,0.9424696]
[1763042212757,0.01787523,102320.0,102310.0,0.9424696]
[1763042212964,0.21334043,102320.0,102310.0,0.48977673]
[1763042213182,0.21334043,102320.0,102310.0,0.74698529]
[1763042213626,0.21334043,102320.0,102310.0,0.16777673]
[1763042213858,0.01787523,102320.0,102310.0,0.36326104]
[1763042214083,0.06043523,102320.0,102310.0,0.6204696]
[1763042214294,0.06043523,102320.0,102310.0,0.36326104]
[1763042214539,0.06043523,102320.0,102310.0,0.6204696]
[1763042214759,0.25590043,102320.0,102310.0,0.42498529]
[1763042214974,0.25590043,102320.0,102310.0,0.42547905]
[1763042215413,0.36590043,102320.0,102310.0,0.42547905]
[1763042215621,0.2380252,102320.0,102310.0,0.49224336]
[1763042215804,0.2380252,102320.0,102310.0,0.54377336]
[1763042216142,0.2380252,102320.0,102310.0,0.43102905]
[1763042216387,0.04256,102320.0,102310.0,0.62651336]
[1763042216629,0.2380252,102320.0,102310.0,0.17382049]
[1763042216840,0.2380252,102320.0,102310.0,0.43102905]
[1763042217776,0.2380252,102320.0,102310.0,0.17382049]
[1763042218193,0.2380252,102320.0,102310.0,0.09663049]
[1763042218626,0.1954652,102320.0,102310.0,0.43102905]
[1763042218861,0.2380252,102320.0,102310.0,0.43102905]
[1763042219112,0.2380252,102320.0,102310.0,0.17382049]
[1763042219358,0.27728062,102320.0,102310.0,0.17382049]
[1763042219531,0.2380252,102320.0,102310.0,0.17382049]
[1763042220623,0.04256,102320.0,102310.0,0.80191349]
[1763042220846,0.31384502,102350.0,102320.0,0.20523725]
[1763042221075,0.22526095,102350.0,102340.0,0.0853]
[1763042221286,0.21425135,102360.0,102340.0,0.51790869]
[1763042221537,0.23796791,102350.0,102340.0,0.78618569]
[1763042221735,0.24393596,102360.0,102340.0,0.353577]
[1763042221736,0.21425135,102360.0,102340.0,0.353577]
[1763042221953,0.21425135,102360.0,102350.0,0.0853]
[1763042222162,0.26579648,102360.0,102350.0,0.0853]
[1763042222568,0.36219596,102360.0,102350.0,0.0853]
[1763042222978,0.36419596,102360.0,102350.0,0.0853]
[1763042223183,0.36419596,102360.0,102350.0,0.08534673]
[1763042223630,0.40359156,102360.0,102350.0,0.03747673]
[1763042224005,0.40359156,102360.0,102350.0,4.673e-05]
[1763042224245,0.40159156,102360.0,102350.0,4.673e-05]
[1763042224444,0.28951208,102360.0,102350.0,0.03747673]
[1763042224625,0.26879648,102360.0,102350.0,0.08534673]
[1763042224829,0.01313586,102360.0,102350.0,0.78621333]
[1763042225030,0.24209955,102360.0,102350.0,0.59080542]
[1763042225238,0.24209955,102360.0,102350.0,0.15819673]
[1763042225605,0.24209955,102360.0,102350.0,0.35360464]
[1763042225808,0.04671073,102360.0,102350.0,0.35360464]
[1763042226022,0.00415073,102360.0,102350.0,0.78621333]
[1763042226230,0.00415073,102360.0,102350.0,1.15177333]
[1763042226684,0.00415073,102360.0,102350.0,1.58438202]
[1763042226939,0.19533643,102390.0,102370.0,0.19535796]
[1763042227104,0.19533643,102390.0,102380.0,0.58668869]
[1763042227105,0.24685722,102390.0,102380.0,0.58668869]
[1763042227306,0.24685451,102390.0,102380.0,0.15408]
[1763042227574,0.2558527,102390.0,102380.0,0.15408]
[1763042228019,0.26485061,102390.0,102380.0,0.15408]
[1763042228222,0.26485061,102390.0,102370.0,0.03464]
[1763042228223,0.19535065,102380.0,102370.0,0.03464]
[1763042228592,0.19536973,102370.0,102360.0,0.39623]
[1763042228796,0.19536973,102370.0,102360.0,0.07323]
[1763042228797,0.23788973,102370.0,102360.0,0.07323]
[1763042228974,0.23788973,102370.0,102360.0,0.11944]
[1763042229830,0.23788973,102370.0,102360.0,0.12244]
[1763042230031,0.28121377,102370.0,102360.0,0.12244]
[1763042230461,0.28121377,102370.0,102360.0,0.003]
[1763042231099,0.73641246,102370.0,102360.0,0.003]
[1763042231303,0.30380377,102370.0,102360.0,0.006]
[1763042231511,0.73641246,102370.0,102360.0,0.006]
[1763042231715,0.75900246,102370.0,102360.0,0.003]
[1763042231931,0.19538882,102360.0,102350.0,4.673e-05]
[1763042232132,0.31341795,102360.0,102350.0,4.673e-05]
[1763042233618,0.76861664,102360.0,102350.0,0.00104673]
[1763042234674,0.76861664,102360.0,102350.0,0.00304673]
[1763042235888,0.76861664,102360.0,102350.0,0.00204673]
[1763042236098,0.53718095,102360.0,102350.0,0.00204673]
[1763042236297,0.73256977,102360.0,102350.0,0.00204673]
[1763042236578,0.73256977,102360.0,102350.0,4.673e-05]
[1763042236810,0.73356977,102360.0,102350.0,4.673e-05]
[1763042238384,1.09998851,102360.0,102350.0,4.673e-05]
[1763042238959,0.23890882,102360.0,102350.0,4.673e-05]
[1763042239194,0.23890882,102360.0,102350.0,0.08089673]
[1763042239368,0.23890882,102360.0,102350.0,0.78214333]
[1763042239369,0.001,102360.0,102350.0,0.78214333]
[1763042239571,0.001,102360.0,102350.0,0.34953464]
[1763042239572,0.04352,102360.0,102350.0,0.34953464]
[1763042240392,0.23890882,102360.0,102350.0,0.34953464]
[1763042240592,0.001,102360.0,102350.0,0.78214333]
[1763042241965,0.001,102360.0,102350.0,1.10514333]
[1763042242553,0.001,102360.0,102350.0,1.12514333]
[1763042242756,0.00024668,102370.0,102360.0,0.19538882]
[1763042242972,0.00024668,102370.0,102360.0,1.64313193]
[1763042243158,0.00024668,102370.0,102360.0,1.21052324]
[1763042243570,0.00024668,102370.0,102360.0,1.64313193]
[1763042243986,0.00024668,102370.0,102360.0,1.64413193]
[1763042244199,0.00024668,102370.0,102360.0,1.66413193]
[1763042244923,0.00024668,102370.0,102360.0,1.71755066]
[1763042245285,0.00024668,102370.0,102360.0,1.71855066]
[1763042245647,0.00024668,102370.0,102360.0,0.77791455]
[1763042245855,0.00024668,102370.0,102360.0,1.21052324]
[1763042246190,0.00024668,102370.0,102360.0,1.21952324]
[1763042246191,0.00124668,102370.0,102360.0,1.21952324]
[1763042246389,0.00124668,102370.0,102360.0,1.23952324]
[1763042246592,0.00024668,102370.0,102360.0,1.23052324]
[1763042246808,0.00124668,102370.0,102360.0,0.89152324]
[1763042247024,0.00124668,102370.0,102360.0,0.89552324]
[1763042247427,0.00124668,102370.0,102360.0,1.21852324]
[1763042247802,0.00124668,102370.0,102360.0,1.23852324]
[1763042248006,0.00124668,102370.0,102360.0,1.21852324]
[1763042248834,0.00124668,102370.0,102360.0,1.65113193]
[1763042249232,0.00124668,102370.0,102360.0,1.67113193]
[1763042249431,0.00124668,102370.0,102360.0,0.78591455]
[1763042249770,0.00124668,102370.0,102360.0,1.67113193]
[1763042250177,0.00124668,102370.0,102360.0,1.65113193]
[1763042250339,0.00124668,102370.0,102360.0,1.67113193]
[1763042252355,0.00124668,102370.0,102360.0,1.65113193]
[1763042252561,0.00124668,102370.0,102360.0,1.67113193]
[1763042252932,0.00124668,102370.0,102360.0,1.65113193]
[1763042253427,0.00124668,102370.0,102360.0,1.67113193]
[1763042254624,0.00124668,102370.0,102360.0,1.23852324]
[1763042255053,0.00124668,102370.0,102360.0,1.21852324]
[1763042255263,0.00124668,102370.0,102360.0,1.23852324]
[1763042255472,0.00124668,102370.0,102360.0,0.46291455]
[1763042255693,0.00124668,102370.0,102360.0,0.91552324]
[1763042255903,0.00124668,102370.0,102360.0,1.21852324]
[1763042256544,0.00124668,102370.0,102360.0,1.65113193]
[1763042256758,0.00124668,102370.0,102360.0,1.67113193]
[1763042258312,0.00124668,102370.0,102360.0,1.65113193]
[1763042258536,1e-08,102370.0,102360.0,1.65113193]
[1763042258905,1e-08,102370.0,102360.0,1.72455066]
[1763042259127,1e-08,102370.0,102360.0,1.72924771]
[1763042259335,1e-08,102370.0,102360.0,1.7392477]
[1763042259809,1e-08,102370.0,102360.0,1.74924769]
[1763042262550,1e-08,102370.0,102360.0,1.7392477]
[1763042262712,1e-08,102370.0,102360.0,1.72924769]
[1763042262919,1e-08,102370.0,102360.0,1.74924769]
[1763042264432,1e-08,102370.0,102360.0,1.7192477]
[1763042264649,1e-08,102370.0,102360.0,1.67582896]
[1763042264811,1e-08,102370.0,102360.0,1.21852324]
[1763042265706,1e-08,102370.0,102360.0,1.23852324]
[1763042266097,1e-08,102370.0,102360.0,1.67113193]
[1763042266308,1e-08,102370.0,102360.0,1.23852324]
[1763042266509,0.19054127,102410.0,102390.0,0.19533157]
[1763042266759,0.19534142,102400.0,102390.0,0.19533157]
[1763042266951,0.19534142,102400.0,102390.0,0.23065157]
[1763042267400,0.19534142,102400.0,102390.0,0.03532]
[1763042267615,0.19534142,102400.0,102380.0,0.26519051]
[1763042267810,0.19580708,102400.0,102380.0,0.26519051]
[1763042268025,0.2055727,102400.0,102380.0,0.26519051]
[1763042268170,0.19533157,102390.0,102380.0,0.26519051]
[1763042268376,0.19533157,102390.0,102380.0,0.06984]
[1763042268576,0.19535065,102380.0,102370.0,0.03532]
[1763042268798,0.19536973,102370.0,102360.0,0.27077799]
[1763042269020,0.19536973,102370.0,102360.0,0.30609882]
[1763042269240,0.19536973,102370.0,102360.0,0.35405882]
[1763042269772,0.19535065,102380.0,102360.0,0.28421882]
[1763042269989,0.29175013,102380.0,102360.0,0.28421882]
[1763042270134,0.04244,102370.0,102360.0,0.28421882]
[1763042270789,0.04244,102370.0,102360.0,0.35405882]
[1763042271193,0.04244,102370.0,102360.0,0.35505882]
[1763042271570,0.04244,102370.0,102360.0,0.35605882]
[1763042271776,0.04244,102370.0,102360.0,0.35505882]
[1763042271979,0.04244,102370.0,102360.0,0.35705882]
[1763042272566,0.30266387,102390.0,102370.0,0.19535769]
[1763042272775,0.04244,102380.0,102370.0,0.31315769]
[1763042272969,0.04268665,102380.0,102370.0,0.31315769]
[1763042273555,0.2380373,102380.0,102370.0,0.31315769]
[1763042274542,0.2390373,102380.0,102370.0,0.24331769]
[1763042275412,0.2390373,102380.0,102370.0,0.04796]
[1763042276158,0.19536973,102370.0,102360.0,0.30609882]
[1763042276357,0.19536973,102370.0,102360.0,0.23625882]
[1763042276582,0.33543678,102380.0,102360.0,0.35405882]
[1763042277027,0.33443678,102380.0,102360.0,0.35405882]
[1763042277463,0.19536973,102370.0,102360.0,0.35605882]
[1763042277672,0.19536973,102370.0,102360.0,0.35705882]
[1763042277920,0.19536973,102370.0,102360.0,0.35505882]
[1763042278267,0.19536973,102370.0,102360.0,0.35605882]
[1763042278482,0.19536973,102370.0,102360.0,0.35505882]
[1763042278884,0.19536973,102370.0,102360.0,0.35605882]
[1763042279512,0.20556192,102370.0,102360.0,0.15967]
[1763042279764,0.20556192,102370.0,102360.0,0.09183]
[1763042279908,0.20556192,102370.0,102360.0,0.28721882]
[1763042280477,0.33443678,102380.0,102360.0,0.35826882]
[1763042280687,0.04268665,102380.0,102370.0,0.31227973]
[1763042280893,0.2380373,102380.0,102370.0,0.31227973]
[1763042281098,0.19536973,102370.0,102360.0,0.11492]
[1763042281307,0.19536973,102370.0,102360.0,0.04187]
[1763042281508,0.19536973,102370.0,102360.0,0.00655]
[1763042281722,0.19536973,102370.0,102360.0,0.00555]